fUST/lending_fUST_20250624
["ID","MTS","AMOUNT","RATE_DAILY","PERIOD"]
[367204832,1750699845161,-460.0,0.00019607,2]
[367204833,1750699845171,-989.69,0.00019607,2]
[367204834,1750699845182,-502.23526613,0.00019607,2]
[367204835,1750699845192,-742.61,0.00019607,2]
[367204836,1750699845202,-460.0,0.00019607,2]
[367204837,1750699845211,-460.0,0.00019607,2]
[367204838,1750699845222,-460.0,0.00019607,2]
[367204839,1750699845231,-460.0,0.00019607,2]
[367204840,1750699845242,-460.0,0.00019607,2]
[367204841,1750699845255,-460.0,0.00019607,2]
[367204842,1750699845265,-460.0,0.00019607,2]
[367204843,1750699845275,-460.0,0.00019607,2]
[367204844,1750699845284,-417.8070118,0.00019607,2]
[367204845,1750699845296,-350.87413783,0.00019607,2]
[367204846,1750699845306,-460.0,0.00019607,2]
[367204847,1750699845316,-460.0,0.00019607,2]
[367204848,1750699845326,-460.0,0.00019607,2]
[367204849,1750699845336,-460.0,0.00019607,2]
[367204850,1750699845347,-500.0,0.00019607,2]
[367204851,1750699845357,-500.0,0.00019607,2]
[367204852,1750699845367,-500.0,0.00019607,2]
[367204853,1750699845376,-500.0,0.00019607,2]
[367204854,1750699845386,-315.55178573,0.00019607,2]
[367204855,1750699845395,-589.37,0.00019607,2]
[367204856,1750699845406,-460.0,0.00019607,2]
[367204857,1750699845416,-460.0,0.00019607,2]
[367204858,1750699845426,-460.0,0.00019607,2]
[367204859,1750699845435,-460.0,0.00019607,2]
[367204860,1750699845445,-687.51,0.00019607,2]
[367204861,1750699845455,-901.28,0.00019607,2]
[367204862,1750699845465,-460.0,0.00019607,2]
[367204863,1750699845474,-460.0,0.00019607,2]
[367204864,1750699845484,-757.56,0.00019607,2]
[367204865,1750699845497,-1548.33,0.00019607,2]
[367204866,1750699845507,-2762.83,0.00019607,2]
[367204867,1750699845517,-460.0,0.00019607,2]
[367204868,1750699845527,-391.36358926,0.00019607,2]
[367204869,1750699845537,-460.0,0.00019607,2]
[367204870,1750699845547,-460.0,0.00019607,2]
[367204871,1750699845558,-460.0,0.00019607,2]
[367204872,1750699845574,-460.0,0.00019607,2]
[367204873,1750699845584,-828.24,0.00019607,2]
[367204874,1750699845594,-460.0,0.00019607,2]
[367204875,1750699845604,-497.25161525,0.00019607,2]
[367204876,1750699845615,-460.0,0.00019607,2]
[367204877,1750699845625,-460.0,0.00019607,2]
[367204878,1750699845635,-460.0,0.00019607,2]
[367204879,1750699845646,-430.0,0.00019607,2]
[367204880,1750699845656,-933.46,0.00019607,2]
[367204881,1750699845667,-460.0,0.00019607,2]
[367204882,1750699845677,-460.0,0.00019607,2]
[367204883,1750699845687,-460.0,0.00019607,2]
[367204884,1750699845697,-460.0,0.00019607,2]
[367204885,1750699845707,-460.0,0.00019607,2]
[367204886,1750699845717,-460.0,0.00019607,2]
[367204887,1750699845727,-543.44,0.00019607,2]
[367204888,1750699845737,-460.0,0.00019607,2]
[367204889,1750699845750,-460.0,0.00019607,2]
[367204890,1750699845760,-796.54,0.00019607,2]
[367204891,1750699845772,-460.0,0.00019607,2]
[367204892,1750699845782,-460.0,0.00019607,2]
[367204893,1750699845791,-1000.0,0.00019607,2]
[367204894,1750699845801,-1000.0,0.00019607,2]
[367204895,1750699845811,-1000.0,0.00019607,2]
[367204896,1750699845821,-1000.0,0.00019607,2]
[367204897,1750699845831,-745.44,0.00019607,2]
[367204898,1750699845841,-460.0,0.00019607,2]
[367204899,1750699845851,-460.0,0.00019607,2]
[367204900,1750699845861,-925.05,0.00019607,2]
[367204901,1750699845871,-460.0,0.00019607,2]
[367204902,1750699845881,-776.66,0.00019607,2]
[367204903,1750699845890,-460.0,0.00019607,2]
[367204904,1750699845900,-1087.42,0.00019607,2]
[367204905,1750699845910,-1026.61,0.00019607,2]
[367204906,1750699845920,-460.0,0.00019607,2]
[367204907,1750699845929,-800.7,0.00019607,2]
[367204908,1750699845940,-641.19,0.00019607,2]
[367204910,1750699845950,-834.19,0.00019607,2]
[367204912,1750699845960,-1130.27,0.00019607,2]
[367204913,1750699845969,-596.38,0.00019607,2]
[367204914,1750699845979,-500.0,0.00019609,2]
[367204915,1750699845988,-1000.0,0.00019609,2]
[367204916,1750699845999,-500.0,0.00019609,2]
[367204917,1750699846009,-500.0,0.0001961,2]
[367204918,1750699846019,-500.0,0.0001961,2]
[367204919,1750699846029,-500.0,0.0001961,2]
[367204920,1750699846039,-1000.0,0.0001961,2]
[367204921,1750699846050,-1000.0,0.0001961,2]
[367204922,1750699846060,-351.0282832,0.0001961,2]
[367204923,1750699846069,-500.0,0.00019611,2]
[367204924,1750699846079,-460.0,0.00019611,2]
[367204925,1750699846089,-730.36,0.00019611,2]
[367204926,1750699846099,-460.0,0.00019611,2]
[367204927,1750699846109,-460.0,0.00019611,2]
[367204928,1750699846119,-460.0,0.00019611,2]
[367204929,1750699846128,-460.0,0.00019611,2]
[367204930,1750699846138,-460.0,0.00019611,2]
[367204931,1750699846149,-460.0,0.00019611,2]
[367204932,1750699846159,-500.0,0.00019611,2]
[367204933,1750699846168,-500.0,0.00019611,2]
[367204934,1750699846178,-500.0,0.00019611,2]
[367204935,1750699846188,-1000.0,0.00019611,2]
[367204937,1750699846197,-1000.0,0.00019611,2]
[367204938,1750699846207,-1000.0,0.00019611,2]
[367204939,1750699846217,-151.0,0.000197,2]
[367204940,1750699846227,-151.0,0.000197,2]
[367204941,1750699846237,-577.35503153,0.00019755,2]
[367204942,1750699846249,-151.0,0.000198,2]
[367204943,1750699846258,-151.0,0.000198,2]
[367204944,1750699846268,-460.0,0.00019866,2]
[367204945,1750699846277,-622.83,0.00019866,2]
[367204946,1750699846358,-460.0,0.00019867,2]
[367204947,1750699846369,-493.67,0.00019867,2]
[367204948,1750699846378,-557.64,0.00019867,2]
[367204949,1750699846388,-460.0,0.00019867,2]
[367204950,1750699846396,-562.27,0.00019867,2]
[367204951,1750699846406,-860.34,0.00019867,2]
[367204952,1750699846415,-555.61,0.00019867,2]
[367204953,1750699846425,-460.0,0.00019867,2]
[367204954,1750699846434,-754.49,0.00019867,2]
[367204955,1750699846443,-5144.83,0.00019867,2]
[367204956,1750699846453,-460.0,0.00019867,2]
[367204957,1750699846462,-460.0,0.00019867,2]
[367204958,1750699846472,-414.16959641,0.00019867,2]
[367204959,1750699846482,-460.0,0.00019868,2]
[367204960,1750699846491,-460.0,0.00019868,2]
[367204961,1750699846504,-460.0,0.00019868,2]
[367204962,1750699846514,-604.33,0.00019868,2]
[367204963,1750699846523,-460.0,0.00019868,2]
[367204964,1750699846532,-472.85,0.00019868,2]
[367204965,1750699846542,-592.73,0.00019868,2]
[367204966,1750699846552,-4524.64,0.00019868,2]
[367204967,1750699846562,-466.48,0.00019868,2]
[367204968,1750699846574,-460.0,0.00019868,2]
[367204969,1750699846583,-460.0,0.00019868,2]
[367204970,1750699846592,-3735.7,0.00019868,2]
[367204971,1750699846602,-460.0,0.00019868,2]
[367204972,1750699846615,-1443.02,0.00019868,2]
[367204973,1750699846625,-553.05,0.00019868,2]
[367204974,1750699846636,-984.22,0.00019868,2]
[367204975,1750699846646,-460.0,0.00019868,2]
[367204976,1750699846658,-460.0,0.00019868,2]
[367204977,1750699846668,-2738.15,0.00019868,2]
[367204978,1750699846678,-4493.05,0.00019868,2]
[367204979,1750699846688,-460.0,0.00019868,2]
[367204980,1750699846698,-460.0,0.00019868,2]
[367204981,1750699846709,-460.0,0.00019868,2]
[367204983,1750699846718,-1948.0,0.00019868,2]
[367204985,1750699846729,-479.58,0.00019868,2]
[367204986,1750699846739,-968.97,0.00019868,2]
[367204987,1750699846752,-1518.06,0.00019868,2]
[367204988,1750699846762,-4742.45,0.00019868,2]
[367204989,1750699846772,-1560.89,0.00019868,2]
[367204990,1750699846782,-460.0,0.00019868,2]
[367204991,1750699846792,-1025.4,0.00019868,2]
[367204992,1750699846802,-536.87,0.00019868,2]
[367204993,1750699846812,-460.0,0.00019868,2]
[367204994,1750699846821,-460.0,0.00019868,2]
[367204995,1750699846830,-987.27,0.00019869,2]
[367204996,1750699846840,-460.0,0.00019869,2]
[367204997,1750699846850,-460.0,0.00019869,2]
[367204998,1750699846860,-460.0,0.00019869,2]
[367204999,1750699846869,-460.0,0.00019869,2]
[367205000,1750699846879,-460.0,0.00019869,2]
[367205001,1750699846888,-460.0,0.00019869,2]
[367205002,1750699846898,-545.79,0.00019869,2]
[367205003,1750699846908,-1655.38,0.00019869,2]
[367205004,1750699846918,-1769.67,0.00019869,2]
[367205005,1750699846928,-460.0,0.00019869,2]
[367205006,1750699846937,-771.32,0.00019869,2]
[367205007,1750699846947,-460.0,0.00019869,2]
[367205008,1750699846957,-460.0,0.00019869,2]
[367205009,1750699846967,-726.72,0.00019869,2]
[367205010,1750699846977,-1117.21,0.00019869,2]
[367205011,1750699846987,-2099.78,0.00019869,2]
[367205012,1750699846996,-1307.57,0.00019869,2]
[367205013,1750699847006,-460.0,0.00019869,2]
[367205014,1750699847016,-2009.77,0.00019869,2]
[367205015,1750699847025,-570.38,0.00019869,2]
[367205016,1750699847035,-10395.74060018,0.0001987,2]
[367205017,1750699847045,-44120.38150831,0.0001987,2]
[367205018,1750699847055,-460.0,0.0001987,2]
[367205019,1750699847066,-460.0,0.0001987,2]
[367205020,1750699847075,-1020.62,0.0001987,2]
[367205021,1750699847084,-460.0,0.0001987,2]
[367205022,1750699847093,-711.89,0.0001987,2]
[367205023,1750699847103,-575.13,0.0001987,2]
[367205024,1750699847112,-746.52,0.0001987,2]
[367205025,1750699847122,-460.0,0.0001987,2]
[367205026,1750699847132,-603.64,0.0001987,2]
[367205027,1750699847142,-460.0,0.0001987,2]
[367205028,1750699847151,-696.77,0.0001987,2]
[367205029,1750699847161,-560.71,0.0001987,2]
[367205030,1750699847170,-635.45,0.0001987,2]
[367205031,1750699847180,-513.8,0.0001987,2]
[367205032,1750699847189,-556.7,0.0001987,2]
[367205033,1750699847199,-460.0,0.0001987,2]
[367205034,1750699847208,-440.0,0.0001987,2]
[367205035,1750699847217,-460.0,0.0001987,2]
[367205036,1750699847227,-917.08,0.0001987,2]
[367205037,1750699847236,-888.06,0.0001987,2]
[367205038,1750699847247,-460.0,0.0001987,2]
[367205039,1750699847256,-468.45,0.0001987,2]
[367205040,1750699847266,-460.0,0.0001987,2]
[367205041,1750699847276,-460.0,0.0001987,2]
[367205042,1750699847285,-653.03,0.0001987,2]
[367205043,1750699847296,-460.0,0.0001987,2]
[367205044,1750699847305,-579.85,0.0001987,2]
[367205045,1750699847314,-460.0,0.0001987,2]
[367205046,1750699847323,-460.0,0.0001987,2]
[367205047,1750699847333,-460.0,0.0001987,2]
[367205048,1750699847342,-460.0,0.0001987,2]
[367205049,1750699847352,-460.0,0.0001987,2]
[367205050,1750699847361,-1080.15,0.0001987,2]
[367205051,1750699847371,-460.0,0.0001987,2]
[367205052,1750699847381,-460.0,0.0001987,2]
[367205053,1750699847390,-677.56,0.0001987,2]
[367205054,1750699847400,-460.0,0.0001987,2]
[367205055,1750699847409,-460.0,0.0001987,2]
[367205056,1750699847419,-460.0,0.0001987,2]
[367205057,1750699847428,-460.0,0.0001987,2]
[367205058,1750699847437,-460.0,0.0001987,2]
[367205059,1750699847447,-190.0,0.0001987,2]
[367205060,1750699847457,-787.95,0.0001987,2]
[367205061,1750699847466,-956.56,0.0001987,2]
[367205062,1750699847476,-460.0,0.0001987,2]
[367205063,1750699847485,-937.38,0.0001987,2]
[367205064,1750699847497,-522.37,0.0001987,2]
[367205065,1750699847506,-877.72,0.0001987,2]
[367205066,1750699847516,-493.67,0.0001987,2]
[367205067,1750699847525,-871.52,0.0001987,2]
[367205068,1750699847534,-1276.79,0.0001987,2]
[367205069,1750699847544,-579.75155842,0.0001987,2]
[367205070,1750699847554,-460.0,0.0001987,2]
[367205071,1750699847564,-705.15,0.0001987,2]
[367205072,1750699847573,-460.0,0.0001987,2]
[367205073,1750699847587,-613.57,0.0001987,2]
[367205074,1750699847596,-925.32,0.0001987,2]
[367205075,1750699847605,-460.0,0.0001987,2]
[367205076,1750699847615,-500.0,0.0001987,2]
[367205077,1750699847626,-460.0,0.0001987,2]
[367205078,1750699847636,-544.0,0.0001987,2]
[367205079,1750699847646,-527.24,0.0001987,2]
[367205080,1750699847657,-460.0,0.00019871,2]
[367205081,1750699847667,-507.05,0.00019871,2]
[367205082,1750699847677,-460.0,0.00019871,2]
[367205083,1750699847687,-460.0,0.00019871,2]
[367205084,1750699847696,-460.0,0.00019871,2]
[367205085,1750699847706,-500.0,0.00019871,2]
[367205086,1750699847716,-500.0,0.00019871,2]
[367205087,1750699847725,-460.0,0.00019871,2]
[367205088,1750699847736,-460.0,0.00019871,2]
[367205089,1750699847747,-460.0,0.00019871,2]
[367205090,1750699847757,-460.0,0.00019871,2]
[367205091,1750699847767,-385.12398756,0.00019871,2]
[367205092,1750699847777,-460.0,0.00019871,2]
[367205093,1750699847786,-460.0,0.00019871,2]
[367205094,1750699847796,-460.0,0.00019871,2]
[367205095,1750699847805,-460.0,0.00019871,2]
[367205096,1750699847815,-460.0,0.00019871,2]
[367205097,1750699847826,-683.15,0.00019871,2]
[367205098,1750699847839,-460.0,0.00019871,2]
[367205099,1750699847848,-460.0,0.00019871,2]
[367205100,1750699847861,-460.0,0.00019871,2]
[367205101,1750699847871,-295.4188828,0.00019871,2]
[367205102,1750699847881,-460.0,0.00019871,2]
[367205103,1750699847897,-460.0,0.00019871,2]
[367205104,1750699847907,-201.39260427,0.00019871,2]
[367205105,1750699848189,-280.15739573,0.00019871,2]
[367205106,1750699848200,-550.93,0.00019871,2]
[367205107,1750699848210,-460.0,0.00019871,2]
[367205108,1750699848220,-460.0,0.00019871,2]
[367205109,1750699848230,-460.0,0.00019871,2]
[367205110,1750699848239,-460.0,0.00019871,2]
[367205111,1750699848250,-460.0,0.00019871,2]
[367205112,1750699848260,-355.59779378,0.00019871,2]
[367205113,1750699848270,-460.0,0.00019871,2]
[367205114,1750699848280,-408.29384029,0.00019871,2]
[367205115,1750699848290,-154.74053132,0.00019871,2]
[367205116,1750699848299,-460.0,0.00019871,2]
[367205117,1750699848308,-460.0,0.00019871,2]
[367205118,1750699848318,-460.0,0.00019871,2]
[367205119,1750699848329,-561.32,0.00019871,2]
[367205120,1750699848340,-457.6814358,0.00019871,2]
[367205121,1750699848350,-460.0,0.00019871,2]
[367205122,1750699848361,-602.35853411,0.00019871,2]
[367205123,1750699848371,-1068.07,0.00019871,2]
[367205124,1750699848382,-432.84520202,0.00019871,2]
[367205125,1750699848392,-460.0,0.00019871,2]
[367205126,1750699848401,-460.0,0.00019871,2]
[367205127,1750699848411,-837.87,0.00019871,2]
[367205128,1750699848421,-693.93,0.00019871,2]
[367205129,1750699848430,-524.65,0.00019871,2]
[367205130,1750699848440,-490.91939001,0.00019871,2]
[367205131,1750699848450,-460.0,0.00019871,2]
[367205132,1750699848461,-460.0,0.00019871,2]
[367205133,1750699848472,-460.0,0.00019871,2]
[367205134,1750699848483,-460.0,0.00019871,2]
[367205135,1750699848493,-460.0,0.00019871,2]
[367205136,1750699848511,-460.0,0.00019871,2]
[367205137,1750699848521,-460.0,0.00019871,2]
[367205138,1750699848532,-460.0,0.00019871,2]
[367205139,1750699848543,-185.72015618,0.00019871,2]
[367205140,1750699848555,-460.0,0.00019871,2]
[367205141,1750699848566,-460.0,0.00019871,2]
[367205142,1750699848578,-460.0,0.00019871,2]
[367205143,1750699848588,-461.75177177,0.00019871,2]
[367205144,1750699848598,-316.66507704,0.00019871,2]
[367205145,1750699848609,-228.51035085,0.00019871,2]
[367205146,1750699848777,-19.538,0.00019871,2]
[367205147,1750699848790,-211.95164915,0.00019871,2]
[367205148,1750699848800,-206.04835295,0.00019871,2]
[367205151,1750699852044,-0.01035227,0.00019871,2]
[367205152,1750699852061,-382.27129478,0.00019871,2]
[367205153,1750699852071,-444.9219699,0.00019871,2]
[367205154,1750699852080,-460.0,0.00019871,2]
[367205155,1750699852090,-460.0,0.00019871,2]
[367205156,1750699852100,-552.86,0.00019871,2]
[367205157,1750699852109,-460.0,0.00019871,2]
[367205158,1750699852119,-460.0,0.00019871,2]
[367205159,1750699852128,-460.0,0.00019871,2]
[367205160,1750699852137,-451.84410237,0.00019871,2]
[367205161,1750699852147,-460.0,0.00019871,2]
[367205162,1750699852156,-460.0,0.00019871,2]
[367205163,1750699852166,-460.0,0.00019871,2]
[367205164,1750699852175,-460.0,0.00019871,2]
[367205165,1750699852184,-460.0,0.00019871,2]
[367205166,1750699852193,-460.0,0.00019871,2]
[367205167,1750699852202,-208.56487203,0.00019871,2]
[367205168,1750699852211,-460.0,0.00019871,2]
[367205169,1750699852220,-460.0,0.00019871,2]
[367205170,1750699852230,-460.0,0.00019871,2]
[367205171,1750699852239,-865.28,0.00019871,2]
[367205172,1750699852249,-668.39,0.00019871,2]
[367205173,1750699852258,-135.86776092,0.00019871,2]
[367205174,1750699852469,-324.13223908,0.00019871,2]
[367205175,1750699852479,-408.82530855,0.00019871,2]
[367205176,1750699852493,-1350.0,0.00019871,2]
[367205177,1750699852645,-161.42754303,0.00019871,2]
[367205178,1750699852662,-590.49714842,0.00019871,2]
[367205179,1750699852672,-460.0,0.00019871,2]
[367205180,1750699852682,-96.31685158,0.00019871,2]
[367205181,1750699852694,-363.68314842,0.00019871,2]
[367205182,1750699852704,-3.87000661,0.00019871,2]
[367205183,1750699852716,-456.12999339,0.00019871,2]
[367205184,1750699852726,-910.97,0.00019871,2]
[367205185,1750699852735,-452.07724821,0.00019871,2]
[367205186,1750699852745,-313.23734308,0.00019871,2]
[367205187,1750699852756,-460.0,0.00019871,2]
[367205188,1750699852766,-641.75,0.00019871,2]
[367205189,1750699852775,-460.0,0.00019871,2]
[367205190,1750699852785,-617.29,0.00019871,2]
[367205191,1750699852794,-460.0,0.00019871,2]
[367205192,1750699852803,-460.0,0.00019871,2]
[367205193,1750699852813,-460.0,0.00019871,2]
[367205194,1750699852823,-460.0,0.00019871,2]
[367205195,1750699852832,-500.62,0.00019871,2]
[367205196,1750699852842,-1262.15,0.00019871,2]
[367205197,1750699852851,-460.0,0.00019871,2]
[367205198,1750699852861,-460.0,0.00019871,2]
[367205199,1750699852870,-11421.81,0.00019871,2]
[367205200,1750699852880,-1492.12,0.00019871,2]
[367205201,1750699852890,-460.0,0.00019871,2]
[367205202,1750699852899,-464.27,0.00019871,2]
[367205203,1750699852909,-460.0,0.00019871,2]
[367205204,1750699852919,-460.0,0.00019871,2]
[367205205,1750699852928,-460.0,0.00019871,2]
[367205206,1750699852938,-1784.67,0.00019871,2]
[367205207,1750699852947,-460.0,0.00019871,2]
[367205208,1750699852957,-460.0,0.00019871,2]
[367205209,1750699852966,-940.03,0.00019871,2]
[367205210,1750699852976,-2081.55,0.00019871,2]
[367205211,1750699852985,-460.0,0.00019871,2]
[367205212,1750699852995,-460.0,0.00019871,2]
[367205213,1750699853015,-4222.14,0.00019871,2]
[367205214,1750699853025,-460.0,0.00019871,2]
[367205215,1750699853035,-1761.71,0.00019871,2]
[367205216,1750699853045,-460.0,0.00019871,2]
[367205217,1750699853056,-1617.64,0.00019872,2]
[367205218,1750699853066,-849.18,0.00019872,2]
[367205219,1750699853076,-1631.26,0.00019872,2]
[367205220,1750699853086,-460.0,0.00019872,2]
[367205221,1750699853096,-949.61,0.00019872,2]
[367205222,1750699853105,-815.0,0.00019872,2]
[367205223,1750699853115,-150.10202009,0.00019872,2]
[367205224,1750699853124,-1010.68339561,0.00019872,2]
[367205225,1750699853590,-460.0,0.00019592,2]
[367205226,1750699853600,-270.09,0.00019866,2]
[367205227,1750699853611,-49.75660439,0.00019872,2]
[367205228,1750699853620,-460.0,0.00019872,2]
[367205229,1750699853629,-460.0,0.00019872,2]
[367205230,1750699853639,-556.1533956,0.00019872,2]
[367205231,1750699854145,-460.0,0.00019596,2]
[367205232,1750699854155,-789.21271145,0.00019597,2]
[367205233,1750699854165,-19.78277357,0.0001987,2]
[367205234,1750699854176,-316.71952509,0.0001987,2]
[367205235,1750699855305,-123.49770134,0.0001987,2]
[367205236,1750699855316,-284.6566044,0.00019872,2]
[367205237,1750699855326,-1154.75,0.00019872,2]
[367205238,1750699855336,-460.0,0.00019872,2]
[367205239,1750699855346,-460.0,0.00019872,2]
[367205240,1750699855355,-507.29,0.00019872,2]
[367205241,1750699855365,-460.0,0.00019872,2]
[367205242,1750699855379,-460.0,0.00019872,2]
[367205243,1750699855389,-430.0,0.00019872,2]
[367205244,1750699855400,-460.0,0.00019872,2]
[367205245,1750699855410,-842.15,0.00019872,2]
[367205246,1750699855420,-913.09,0.00019872,2]
[367205247,1750699855430,-611.86,0.00019872,2]
[367205248,1750699855440,-460.0,0.00019872,2]
[367205249,1750699855450,-581.78,0.00019872,2]
[367205250,1750699855460,-1428.61,0.00019872,2]
[367205251,1750699855470,-736.64,0.00019872,2]
[367205252,1750699855480,-741.6,0.00019872,2]
[367205253,1750699855491,-476.75,0.00019872,2]
[367205254,1750699855504,-693.06,0.00019872,2]
[367205255,1750699855514,-1040.93,0.00019872,2]
[367205256,1750699855524,-800.11,0.00019872,2]
[367205257,1750699855534,-447.02649285,0.00019872,2]
[367205258,1750699855544,-460.0,0.00019872,2]
[367205259,1750699855554,-1279.45,0.00019872,2]
[367205260,1750699855564,-1034.09,0.00019872,2]
[367205261,1750699855574,-551.64,0.00019872,2]
[367205262,1750699855587,-460.0,0.00019872,2]
[367205263,1750699855597,-575.73,0.00019872,2]
[367205264,1750699855606,-1009.37,0.00019872,2]
[367205265,1750699855616,-1222.04,0.00019872,2]
[367205266,1750699855627,-460.0,0.00019872,2]
[367205267,1750699855637,-1395.18,0.00019872,2]
[367205268,1750699855647,-972.36,0.00019872,2]
[367205269,1750699855659,-500.0,0.00019873,2]
[367205270,1750699855669,-500.0,0.00019873,2]
[367205271,1750699855679,-500.0,0.00019873,2]
[367205272,1750699855689,-500.0,0.00019873,2]
[367205273,1750699855699,-500.0,0.00019873,2]
[367205274,1750699855709,-500.0,0.00019873,2]
[367205275,1750699855718,-500.0,0.00019873,2]
[367205276,1750699855729,-500.0,0.00019873,2]
[367205277,1750699855738,-500.0,0.00019873,2]
[367205278,1750699855752,-500.0,0.00019873,2]
[367205279,1750699855762,-500.0,0.00019873,2]
[367205280,1750699855771,-467.00804926,0.00019873,2]
[367205281,1750699855781,-500.0,0.00019873,2]
[367205282,1750699855792,-500.87736512,0.00019873,2]
[367205283,1750699855802,-500.0,0.00019873,2]
[367205284,1750699855811,-500.0,0.00019873,2]
[367205285,1750699855821,-500.0,0.00019873,2]
[367205286,1750699855834,-500.0,0.00019873,2]
[367205287,1750699855843,-500.0,0.00019873,2]
[367205288,1750699855853,-542.889047,0.00019873,2]
[367205289,1750699855863,-500.0,0.00019873,2]
[367205290,1750699855873,-500.0,0.00019873,2]
[367205291,1750699855882,-500.0,0.00019873,2]
[367205292,1750699855893,-520.63780772,0.00019873,2]
[367205293,1750699855903,-500.0,0.00019873,2]
[367205294,1750699855913,-500.0,0.00019873,2]
[367205295,1750699855924,-500.0,0.00019873,2]
[367205296,1750699855936,-500.0,0.00019873,2]
[367205297,1750699855946,-500.0,0.00019873,2]
[367205298,1750699855956,-500.0,0.00019873,2]
[367205299,1750699855966,-500.0,0.00019873,2]
[367205300,1750699855976,-531.87,0.0001988,2]
[367205301,1750699855986,-460.0,0.0001988,2]
[367205302,1750699855996,-319.73989259,0.0001988,2]
[367205303,1750699856012,-460.0,0.0001988,2]
[367205304,1750699856022,-460.0,0.0001988,2]
[367205305,1750699856032,-460.0,0.0001988,2]
[367205306,1750699856043,-460.0,0.0001988,2]
[367205307,1750699856054,-500.0,0.0001988,2]
[367205308,1750699856064,-500.0,0.0001988,2]
[367205309,1750699856074,-2209.43,0.0001988,2]
[367205310,1750699856083,-460.0,0.0001988,2]
[367205311,1750699856093,-672.85,0.0001988,2]
[367205312,1750699856103,-928.39,0.0001988,2]
[367205313,1750699856113,-460.0,0.0001988,2]
[367205314,1750699856123,-432.79412721,0.0001988,2]
[367205315,1750699856132,-460.0,0.0001988,2]
[367205316,1750699856142,-460.0,0.0001988,2]
[367205317,1750699856152,-460.0,0.0001988,2]
[367205318,1750699856162,-657.23,0.0001988,2]
[367205319,1750699856172,-1828.02,0.0001988,2]
[367205320,1750699856181,-460.0,0.0001988,2]
[367205321,1750699856191,-460.0,0.0001988,2]
[367205322,1750699856201,-1253.49,0.0001988,2]
[367205323,1750699856211,-522.98,0.0001988,2]
[367205324,1750699856221,-265.25136343,0.0001988,2]
[367205325,1750699856231,-484.53,0.0001988,2]
[367205326,1750699856241,-781.06,0.0001988,2]
[367205327,1750699856253,-4727.82,0.0001988,2]
[367205328,1750699856262,-688.76,0.0001988,2]
[367205329,1750699856272,-3402.39,0.0001988,2]
[367205330,1750699856282,-656.68,0.0001988,2]
[367205331,1750699856292,-4730.75,0.0001988,2]
[367205332,1750699856301,-460.0,0.0001988,2]
[367205333,1750699856311,-2780.09,0.0001988,2]
[367205334,1750699856321,-460.0,0.0001988,2]
[367205335,1750699856331,-779.51,0.0001988,2]
[367205336,1750699856341,-6282.25,0.0001988,2]
[367205337,1750699856351,-939.55,0.0001988,2]
[367205338,1750699856361,-460.0,0.00019881,2]